Cogmind - Beta 12 X1 @@@ ROGUE MODE // 2022.08.13 @ 17:30:30 Player: Momo Result: Destroyed by Enhanced Grunt with Neutron Cannon Performance ------------- Evolutions (3) 1500 Regions Visited (10) 2000 Robots Destroyed (90) 450 Value Destroyed (3518) 3518 Prototype IDs (217) 4340 Alien Tech Used (0) 0 Bonus (5684) 5684 TOTAL SCORE: 17492 Bonus ------- Pacifist 200 High Alert Combat Kills 513 Follower Combat Kills 467 Entered Garrisons 400 Used RIF Installer 2000 Met Data Miner 300 Used Data Conduit 3000 Friendly Fire -1196 Cogmind --------- Core Integrity 0/700 Matter 194/300 Energy 86/100 System Corruption 6% Temperature Cool (0) Movement Flying (32) Location -7/Data Miner Parts ------- > --- POWER (1) -------- (None) > --- PROPULSION (3) --- Cesium-ion Thruster Cesium-ion Thruster > --- UTILITY (6) ------ Melee Analysis Suite Target Analyzer Makeshift Hacking Suite System Shield 01-MTF's Autohacker > --- WEAPON (3) ------- Spear Spear > --- INVENTORY (5) ---- Medium Storage Unit System Mapper Ghost Barrier Quantum Router Heavy Rocket Launcher Peak State ------------ > --- POWER ------------ Light Deuterium Engine > --- PROPULSION ------- Combat Airjet Xenon Bombardment Thruster Xenon Bombardment Thruster > --- UTILITY ---------- Medium Storage Unit Improved Salvage Targeting Computer Microactuators Improved Light Armor Plating Hacking Suite System Shield > --- WEAPON ----------- Spear Spear Spear > --- INVENTORY -------- Machine Analyzer Target Analyzer Actuator Array Relay Coupler [Behemoth] Relay Coupler [Behemoth] 01-MTF's Autohacker Heavy Rocket Launcher Remote Datajack Spear Spear [Rating: 50] Favorites ----------- Power Ion Engine Engine Ion Engine Power Core Light Nuclear Core Propulsion Aluminum Leg Treads Light Treads Leg Aluminum Leg Wheel Compact Wheel Hover Unit Combat Airjet Flight Unit Cesium-ion Thruster Utility Hacking Suite Device Microactuators Storage Medium Storage Unit Processor Target Analyzer Hackware Hacking Suite Protection Hardened Medium Armor Plating Weapon Spear Energy Gun 01-MTF's Shockpuncher Energy Cannon Ion Burst Cannon Ballistic Gun Gauss Rifle Ballistic Cannon Advanced Assault Cannon Launcher Mini Grenade Launcher Special Weapon Remote Datajack Impact Weapon Heavy Hammer Slashing Weapon Katana Piercing Weapon Spear Build | -11 -10 -9 -9 -9 -8 -8 -7 -7 -7 -7 ------- Run | Scr Mat Mat Sto Gar Mat Gar Fac Low Low Dat Slots Evolved 6 | . . 2 . . 2 . 2 . . . Power . | . . . . . . . . . . . Propulsion 1 | . . 1 . . . . . . . . Utility 4 | . . 1 . . 2 . 1 . . . Weapon 1 | . . . . . . . 1 . . . Parts Attached 126 | 3 1 14 15 12 3 10 57 1 6 4 Power 9 | . . 3 . 1 . . 5 . . . Engine 8 | . . 3 . 1 . . 4 . . . Core 1 | . . . . . . . 1 . . . Reactor . | . . . . . . . . . . . Propulsion 40 | 2 1 3 6 4 . 2 20 . 2 . Treads 2 | . . 1 1 . . . . . . . Leg 9 | 2 . . . 4 . 1 2 . . . Wheel 9 | . . 2 1 . . . 6 . . . Hover 9 | . . . 3 . . . 6 . . . Flight 11 | . 1 . 1 . . 1 6 . 2 . Utility 34 | . . 4 5 2 2 1 16 1 1 2 Device 7 | . . 1 2 . . . 2 . 1 1 Storage 4 | . . 1 1 . . . 2 . . . Processor 7 | . . 2 1 . . . 3 1 . . Hackware 13 | . . . 1 2 2 1 6 . . 1 Protection 3 | . . . . . . . 3 . . . Artifact . | . . . . . . . . . . . Weapon 43 | 1 . 4 4 5 1 7 16 . 3 2 Energy Gun 5 | 1 . 1 2 . . 1 . . . . Energy Cannon 3 | . . 1 . 1 . . 1 . . . Ballistic Gun 8 | . . 2 1 . . 2 3 . . . Ballistic Cannon 2 | . . . . . . . 2 . . . Launcher 7 | . . . . 3 . 1 1 . 2 . Special Weapon 4 | . . . . 1 . 1 1 . 1 . Impact Weapon 3 | . . . 1 . 1 1 . . . . Slashing Weapon 2 | . . . . . . 1 1 . . . Piercing Weapon 9 | . . . . . . . 7 . . 2 Special Melee Weapon . | . . . . . . . . . . . Unidentified Prototypes 8 | . . 1 4 1 . . 2 . . . Parts Lost 52 | . 2 3 1 7 . 3 30 . 4 2 Power 7 | . . 1 . 1 . 1 4 . . . Propulsion 24 | . 1 2 1 4 . 1 12 . 3 . Utility 9 | . . . . 1 . . 5 . 1 2 Weapon 12 | . 1 . . 1 . 1 9 . . . Highest Loss Streak 8 | . 1 3 1 5 . 2 8 . 2 2 To Critical Strikes . | . . . . . . . . . . . Average Slot Usage (%) 80 | . 37 64 91 78 88 93 82 84 70 81 Engine 5 | . . 7 11 10 9 8 2 . . . Treads 1 | . . 7 9 . . . . . . . Leg 6 | . 27 . . 10 27 21 2 . . . Wheel 3 | . . 13 11 . . . 5 . . . Hover 3 | . . . 3 5 . . 5 . . . Flight 3 | . . . 4 . . . 2 23 8 15 Device 4 | . . 2 8 1 . . 3 7 8 15 Storage 7 | . . 2 11 11 9 9 6 7 7 4 Processor 5 | . . 8 9 . . . 5 7 15 15 Hackware 17 | . . . . 17 25 36 22 23 11 9 Energy Cannon 2 | . . 9 . 9 . . 1 . . . Ballistic Gun 2 | . . 9 9 . . 5 3 . . . Launcher 2 | . . . . 9 7 4 . . 1 . Impact Weapon 1 | . . . 9 . 1 3 . . . . Piercing Weapon 6 | . . . . . . . 9 15 15 15 Naked Turns . | . . . . . . . . . . . Heaviest Build 35 | 2 2 23 29 27 21 23 35 16 24 20 Greatest Support 44 | 20 20 32 32 30 30 35 44 16 16 10 Greatest Overweight (x) 7 | . . 1 2 3 . . 5 . 7 1 Average Overweight (x) . | . . . . 1 . . . . 2 . Largest Inventory Capacity 10 | 5 5 10 10 10 10 10 10 10 10 10 Average Capacity 9 | 5 5 6 10 10 10 10 9 10 10 8 Most Carried 10 | 2 4 10 10 10 10 10 10 10 10 8 Average Carried 9 | 1 2 4 9 9 9 9 9 9 9 6 Final Capacity 10 | 5 5 10 10 10 10 10 10 10 10 5 Final Carried 10 | 2 4 10 10 10 9 10 9 10 8 5 Class Distribution -------------------- 48% | Hacker-Mutant 27% | Mutant 14% | Scavenger-Mutant 4% | Commander-Mutant 4% | Hacker-Sprinter Dominant Class ---------------- Mutant | -10/Materials Scavenger-Mutant | -9/Materials Mutant | -9/Storage Hacker-Mutant | -9/Garrison Scavenger-Mutant | -8/Materials Hacker-Mutant | -8/Garrison Hacker-Mutant | -7/Factory Hacker-Sprinter | -7/Lower Caves Hacker-Mutant | -7/Lower Caves Commander-Mutant | -7/Data Miner Resources | -11 -10 -9 -9 -9 -8 -8 -7 -7 -7 -7 ----------- Run | Scr Mat Mat Sto Gar Mat Gar Fac Low Low Dat Matter Collected 2412 | 230 . 219 232 268 . 365 902 34 139 23 Remotely . | . . . . . . . . . . . Salvage Created 2932 | . . 461 379 352 . 341 1232 75 69 23 Parts 203 | . . 26 22 30 . 27 81 7 6 4 Haulers Intercepted 3 | . . 1 1 . . . 1 . . . Recyclers Shooed 3 | . . 1 . . . . 2 . . . Parts Field Recycled . | . . . . . . . . . . . Retrieved Matter . | . . . . . . . . . . . Parts Self-Destructed 11 | . . . . . . . . 6 5 . Prevented . | . . . . . . . . . . . Kills | -11 -10 -9 -9 -9 -8 -8 -7 -7 -7 -7 ------- Run | Scr Mat Mat Sto Gar Mat Gar Fac Low Low Dat Combat Hostiles Destroyed 66 | . . 4 8 21 . 13 14 1 5 . Melee 10 | . . . 1 . . . 8 1 . . Guns 20 | . . 3 5 3 . 5 4 . . . Cannons 8 | . . 1 . 5 . . 2 . . . AOE 25 | . . . . 12 . 8 . . 5 . Classes Destroyed 17 | . . 7 1 2 . 2 5 . . . Worker 4 | . . 1 . . . . 3 . . . Builder 4 | . . 1 . . . . 3 . . . Hauler 3 | . . 1 1 . . . 1 . . . Recycler 4 | . . 2 . . . . 2 . . . Mechanic 1 | . . . . . . . 1 . . . Operator 1 | . . . . . . . 1 . . . Watcher 4 | . . 2 . . . . 2 . . . Swarmer 18 | . . . 4 6 . 4 . . 4 . Cutter 2 | . . . . . . 2 . . . . Grunt 22 | . . 2 3 11 . 4 2 . . . Brawler 1 | . . . . . . . 1 . . . Duelist 2 | . . . . 1 . 1 . . . . Sentry 9 | . . 2 1 . . 1 4 1 . . Demolisher 1 | . . . . . . . 1 . . . Hunter 4 | . . . . . . . 4 . . . Programmer 7 | . . . . 3 . . 3 . 1 . Heavy 1 | . . . . . . 1 . . . . Best Kill Streak 6 | . . 5 5 6 . 6 4 1 4 1 Combat Bots Only 6 | . . 2 4 6 . 6 2 1 4 . Max Kills in Single Turn 5 | . . 2 2 2 . 5 2 1 4 1 Gunslinging 1 | . . . 1 . . . . . . . Exploded 5 | . . . . 2 . 5 . . 4 . Melee 1 | . . . 1 . . . 1 1 . . Uniques/NPCs Destroyed 2 | . . . 1 . . . . . . 1 01-MTF (-9/Storage) Data Miner (-7/Data Miner) Combat | -11 -10 -9 -9 -9 -8 -8 -7 -7 -7 -7 -------- Run | Scr Mat Mat Sto Gar Mat Gar Fac Low Low Dat Damage Taken 5935 | . 281 319 322 653 . 839 3072 101 217 131 Core 1334 | . 107 73 63 122 . 254 520 51 58 86 Absorbed by Shields . | . . . . . . . . . . . Regen/Repaired (Parts) 342 | . . . . . . 69 273 . . . Core Remaining (%) 61 | 100 57 . . 35 . 53 . . . . Volleys Fired 264 | . . 31 34 53 5 45 80 . 16 . Largest 2 | . . 2 2 2 1 2 2 . 1 . Hottest 130 | . . 83 106 130 5 58 65 . 39 . Shots Fired 314 | . . 59 38 54 5 46 96 . 16 . Gun 171 | . . 31 38 11 . 34 57 . . . Cannon 70 | . . 28 . 15 . . 27 . . . Launcher 43 | . . . . 22 . 8 6 . 7 . Special 30 | . . . . 6 5 4 6 . 9 . Kinetic 151 | . . 28 29 . . 31 63 . . . Thermal 72 | . . 31 5 15 . . 21 . . . Explosive 37 | . . . . 22 . 8 . . 7 . Electromagnetic 24 | . . . 4 11 . 3 6 . . . Robot Hit Streak 32 | . . 4 32 6 8 6 6 . 11 . Robot Miss Streak 6 | . . 3 1 4 1 4 6 . 3 . Penetration Max 1 | . . . . . . . 1 . . . Secondary Targets 1 | . . . 1 . . . . . . . Max Gunslinging Chain 1 | . . . 1 . . . . . . . Shots Hit Robots 239 | . . 30 43 35 4 27 85 3 11 1 Core Hits 140 | . . 13 13 36 . 24 41 2 10 1 Critical Kills 1 | . . . . . . . 1 . . . Critical Parts Destroyed 4 | . . . 2 . . . 2 . . . Critical Strikes 9 | . . . 3 1 . . 5 . . . Burn 1 | . . . 1 . . . . . . . Destroy 3 | . . . . . . . 3 . . . Blast 1 | . . . . . . . 1 . . . Corrupt 1 | . . . . 1 . . . . . . Smash 2 | . . . 2 . . . . . . . Impale 1 | . . . . . . . 1 . . . Melee Attacks 101 | . . . 15 . 1 4 76 4 . 1 Impact 18 | . . . 15 . 1 2 . . . . Slashing 5 | . . . . . . 2 3 . . . Piercing 78 | . . . . . . . 73 4 . 1 Sneak Attacks 4 | . . . . . . . 3 . . 1 Combat Hostiles . | . . . . . . . . . . . Follow-up Attacks 9 | . . . . . . . 8 1 . . Damage Inflicted 7790 | . . 504 829 2070 . 1181 2645 102 378 81 Guns 2366 | . . 276 524 280 . 437 849 . . . Cannons 1184 | . . 228 . 523 . . 433 . . . Explosions 2690 | . . . . 1267 . 715 330 . 378 . Melee 1550 | . . . 305 . . 29 1033 102 . 81 Ramming . | . . . . . . . . . . . Kinetic 1951 | . . 222 410 . . 357 962 . . . Thermal 1368 | . . 282 67 523 . 77 419 . . . Explosive 2283 | . . . . 1267 . 638 . . 378 . Electromagnetic 638 | . . . 47 280 . 80 231 . . . Impact 305 | . . . 305 . . . . . . . Slashing 29 | . . . . . . 29 . . . . Piercing 1216 | . . . . . . . 1033 102 . 81 Highest Corruption 6 | . . . 1 3 . . 6 6 6 6 Average Corruption 3 | . . . 1 2 . . 3 6 6 6 Corruption Purged . | . . . . . . . . . . . Corruption Blocked . | . . . . . . . . . . . Effects 87 | . . . 1 22 . . 30 5 25 4 Message Errors 22 | . . . . 3 . . 8 2 8 1 Matter Fused 18 | . . . . 4 . . 7 1 4 2 Heat Flow Errors 15 | . . . . 4 . . 5 1 4 1 Energy Discharges 14 | . . . 1 2 . . 5 1 5 . Parts Rejected 1 | . . . . . . . 1 . . . Data Loss (minor) 9 | . . . . 5 . . 1 . 3 . Data Loss (major) 6 | . . . . 3 . . 2 . 1 . Misfires 1 | . . . . . . . 1 . . . Weapon Failures 1 | . . . . 1 . . . . . . Overload Shots . | . . . . . . . . . . . Overflow Damage 305 | . . . 123 125 . 8 49 . . . Projectiles 29 | . . . . 27 . . 2 . . . Explosions 126 | . . . . 98 . 8 20 . . . Melee 150 | . . . 123 . . . 27 . . . Knockbacks 4 | . . . 2 . . . 2 . . . Impact 2 | . . . 2 . . . . . . . Kinetic 2 | . . . . . . . 2 . . . Secondary . | . . . . . . . . . . . Self-Inflicted Damage 295 | . . . . 166 . 113 . . 16 . Shots 11 | . . . . 6 . 4 . . 1 . Rammed . | . . . . . . . . . . . Targets Rammed . | . . . . . . . . . . . Kicked . | . . . . . . . . . . . Crushed . | . . . . . . . . . . . Highest Temperature 272 | . 2 35 120 272 . 36 217 150 264 140 Average Temperature 64 | . 2 12 54 86 . 18 61 74 109 78 Received Heat Transfer 1149 | . 174 96 102 132 . 189 420 36 . . Effects 2 | . . . . 1 . . 1 . . . Energy Bleed 1 | . . . . . . . 1 . . . Interference 1 | . . . . 1 . . . . . . Siege Activations . | . . . . . . . . . . . Robots Corrupted 1 | . . . . 1 . . . . . . Combat Hostiles 1 | . . . . 1 . . . . . . Parts Fried 4 | . . . 1 2 . . 1 . . . Impact Corruptions 3 | . . . 3 . . . . . . . Robots Melted . | . . . . . . . . . . . Combat Hostiles . | . . . . . . . . . . . Parts Melted 1 | . . 1 . . . . . . . . Heat Transferred 1933 | . . 592 222 525 . 50 544 . . . Parts Sabotaged . | . . . . . . . . . . . Parts Stolen . | . . . . . . . . . . . Parts Stripped . | . . . . . . . . . . . Power Chain Reactions 2 | . . . . 1 . 1 . . . . Missiles Intercepted . | . . . . . . . . . . . Alert | -11 -10 -9 -9 -9 -8 -8 -7 -7 -7 -7 ------- Run | Scr Mat Mat Sto Gar Mat Gar Fac Low Low Dat Peak Influence 1289 | . 47 183 673 1289 653 1071 607 . . . Initial 627 | . . 11 76 437 627 424 562 . . . Average 488 | . 27 94 338 986 635 711 210 . . . Maximum Alert Level 4 | . . . 2 4 2 3 2 . . . Low Security (%) 30 | 100 100 100 22 . . . 49 . . . Level 1 20 | . . . 48 . . . 38 . . . Level 2 18 | . . . 29 9 100 45 11 . . . Level 3 27 | . . . . 77 . 54 . . . . Level 4 3 | . . . . 12 . . . . . . Level 5 . | . . . . . . . . . . . High Security . | . . . . . . . . . . . Max Security . | . . . . . . . . . . . Squads Dispatched 11 | . . . 3 . . . 8 . . . Investigation 2 | . . . 1 . . . 1 . . . Extermination 3 | . . . . . . . 3 . . . Reinforcement 5 | . . . 2 . . . 3 . . . Assault . | . . . . . . . . . . . Garrison 1 | . . . . . . . 1 . . . Intercept . | . . . . . . . . . . . Searches Triggered . | . . . . . . . . . . . Construction Impeded 2 | . . . . . . . 2 . . . Haulers Reinforced . | . . . . . . . . . . . Active Scanning Responses . | . . . . . . . . . . . Cargo Convoy Interrupts . | . . . . . . . . . . . Stealth | -11 -10 -9 -9 -9 -8 -8 -7 -7 -7 -7 --------- Run | Scr Mat Mat Sto Gar Mat Gar Fac Low Low Dat Distress Signals 8 | . 1 1 2 . . . 4 . . . Communications Jammed . | . . . . . . . . . . . Distress Signals . | . . . . . . . . . . . Times Spotted 129 | . 7 8 19 24 1 18 41 1 6 4 Peak Tracking Total 8 | . 7 2 5 5 2 8 4 1 4 4 Tactical Retreats 9 | . . . 2 2 . 3 2 . . . Traps | -11 -10 -9 -9 -9 -8 -8 -7 -7 -7 -7 ------- Run | Scr Mat Mat Sto Gar Mat Gar Fac Low Low Dat Traps Triggered 11 | . . . 1 . . 2 7 . 1 . Indirectly 1 | . . . . . . . 1 . . . Trap Hack Attempts . | . . . . . . . . . . . Triggered . | . . . . . . . . . . . Disarmed . | . . . . . . . . . . . Reprogrammed 4 | . . . . . . . 4 . . . Reused . | . . . . . . . . . . . Traps Extracted . | . . . . . . . . . . . Installed . | . . . . . . . . . . . Triggered . | . . . . . . . . . . . Machines | -11 -10 -9 -9 -9 -8 -8 -7 -7 -7 -7 ---------- Run | Scr Mat Mat Sto Gar Mat Gar Fac Low Low Dat Machines Disabled 20 | . . . 4 6 . 2 7 . 1 . Max in Single Turn 4 | . . . 1 3 . 1 4 . 1 . Garrison Access 2 | . . . . . . . 2 . . . Garrison Relay 4 | . . . . 2 . 2 . . . . Machines Sabotaged . | . . . . . . . . . . . Garrisons Compromised . | . . . . . . . . . . . Overloaded Fab Kills . | . . . . . . . . . . . Hacking | -11 -10 -9 -9 -9 -8 -8 -7 -7 -7 -7 --------- Run | Scr Mat Mat Sto Gar Mat Gar Fac Low Low Dat Machines Accessed 32 | . 2 1 5 2 2 2 12 1 1 4 Terminals 20 | . 2 1 4 2 1 2 8 . . . Fabricators . | . . . . . . . . . . . Repair Stations 1 | . . . . . . . 1 . . . Recycling Units . | . . . . . . . . . . . Scanalyzers 1 | . . . . . . . 1 . . . Garrison Access 4 | . . . 1 . 1 . 2 . . . Total Hacks 95 | . 9 7 9 3 3 3 28 1 1 31 Successful 70 | . 4 4 5 2 1 2 19 1 1 31 Failed 24 | . 5 2 4 1 2 1 9 . . . Catastrophic 6 | . 1 . 2 . . . 3 . . . Database Lockouts 1 | . . 1 . . . . . . . . Manual 23 | . 4 3 3 . 1 . 12 . . . Terminals 52 | . 9 7 8 3 2 3 20 . . . Fabricators . | . . . . . . . . . . . Repair Stations 5 | . . . . . . . 5 . . . Recycling Units . | . . . . . . . . . . . Scanalyzers 1 | . . . . . . . 1 . . . Garrison Access 4 | . . . 1 . 1 . 2 . . . Terminal Hacks 57 | . 3 3 4 2 . 2 10 1 1 31 Record 11 | . . . . . . . . . . 11 Part Schematic 12 | . . . . . . . . . . 12 Robot Schematic 5 | . . . . . . . . . . 5 Robot Analysis 3 | . 1 1 1 . . . . . . . Prototype ID Bank 7 | . 1 1 . . . . 2 . . 3 Open Door 5 | . . . 3 . . . . 1 1 . Branch Access Points 1 | . . . . . . . 1 . . . Emergency Access Points 2 | . . . . 1 . 1 . . . . Terminal Index 1 | . . . . . . . 1 . . . Unreport Threat 2 | . . . . . . . 2 . . . Locate Traps 1 | . . . . . . . 1 . . . Reprogram Traps 1 | . . . . . . . 1 . . . Registered Components 2 | . 1 . . . . . 1 . . . Registered Prototypes 1 | . . . . . . . 1 . . . Zone Layout 1 | . . 1 . . . . . . . . Patrol Navigation 1 | . . . . . . 1 . . . . Security Stations 1 | . . . . 1 . . . . . . Fabricator Hacks . | . . . . . . . . . . . Repair Station Hacks 4 | . . . . . . . 4 . . . Scan Component 2 | . . . . . . . 2 . . . Repair 2 | . . . . . . . 2 . . . Recycling Unit Hacks . | . . . . . . . . . . . Scanalyzer . | . . . . . . . . . . . Garrison Access Hacks 4 | . . . 1 . 1 . 2 . . . Unlock Access 2 | . . . 1 . 1 . . . . . Seal Access 2 | . . . . . . . 2 . . . Unauthorized Hacks 5 | . 1 1 . . . . 3 . . . Terminals 5 | . 1 1 . . . . 3 . . . Botnet 3 | . . 1 . . . . 2 . . . Disrupt 1 | . 1 . . . . . . . . . Operators 1 | . . . . . . . 1 . . . Fabricators . | . . . . . . . . . . . Repair Stations . | . . . . . . . . . . . Recycling Units . | . . . . . . . . . . . Scanalyzers . | . . . . . . . . . . . Garrison Access . | . . . . . . . . . . . Data Cores Recovered 1 | . . . . . . . 1 . . . Used . | . . . . . . . . . . . Hacking Detections 18 | . 2 1 4 . 1 1 9 . . . Full Trace Events 1 | . . . 1 . . . . . . . Feedback Events 1 | . . . 1 . . . . . . . Corruption 1 | . . . 1 . . . . . . . Feedback Blocked . | . . . . . . . . . . . Robot Schematics Acquired 5 | . . . . . . . . . . 5 Robots Built . | . . . . . . . . . . . Authchips . | . . . . . . . . . . . Time . | . . . . . . . . . . . Total Robot Build Rating . | . . . . . . . . . . . Part Schematics Acquired 12 | . . . . . . . . . . 12 Parts Built . | . . . . . . . . . . . Authchips . | . . . . . . . . . . . Time . | . . . . . . . . . . . Total Part Build Rating . | . . . . . . . . . . . Parts Repaired 2 | . . . . . . . 2 . . . Time 35 | . . . . . . . 35 . . . Parts Recycled . | . . . . . . . . . . . Recycled Matter . | . . . . . . . . . . . Retrieved Matter . | . . . . . . . . . . . Retrieved Components . | . . . . . . . . . . . Parts Scanalyzed . | . . . . . . . . . . . Part Schematics Acquired . | . . . . . . . . . . . Parts Damaged . | . . . . . . . . . . . Bothacking | -11 -10 -9 -9 -9 -8 -8 -7 -7 -7 -7 ------------ Run | Scr Mat Mat Sto Gar Mat Gar Fac Low Low Dat Used RIF Installer 4 | . . . . 2 . 2 . . . . Command Fork 1 | . . . . . . 1 . . . . Patrol Navigation 1 | . . . . 1 . . . . . . Autoassimilate 1 | . . . . . . 1 . . . . Robots Hacked 8 | . . . . . 3 . 5 . . . Non-combat 8 | . . . . . 3 . 5 . . . Combat . | . . . . . . . . . . . Robot Hacks Applied 8 | . . . . . 3 . 5 . . . ignore_repairs 4 | . . . . . . . 4 . . . map_walls 1 | . . . . . 1 . . . . . block_reporting 1 | . . . . . . . 1 . . . formatsys_low 2 | . . . . . 2 . . . . . Relay Couplers Released 16 | . . . . 8 . 8 . . . . Machine Destruction 16 | . . . . 8 . 8 . . . . Attached 3 | . . . . . 1 . 2 . . . Fabnet Peak Effective % . | . . . . . . . . . . . Robots Rewired 12 | . . . . 4 . 4 . . 4 . Allies Hacked . | . . . . . . . . . . . Hacks Repelled . | . . . . . . . . . . . Allies | -11 -10 -9 -9 -9 -8 -8 -7 -7 -7 -7 -------- Run | Scr Mat Mat Sto Gar Mat Gar Fac Low Low Dat Total Allies 18 | . . . 1 4 2 4 3 . 4 . Largest Group 9 | . . . 1 4 6 9 6 . 4 4 Highest-Rated Group 134 | . . . 100 84 108 134 93 . 113 113 Highest-Rated Ally 100 | . . . 100 21 21 21 31 . 31 31 Total Orders 26 | . . . . 4 . 19 . . . 3 STAY 12 | . . . . 2 . 8 . . . 2 FOLLOW 9 | . . . . 2 . 6 . . . 1 AID 3 | . . . . . . 3 . . . . DROP 1 | . . . . . . 1 . . . . COLLECT 1 | . . . . . . 1 . . . . Ally Attacks 94 | . . . 29 . 6 19 24 . . 16 Total Damage 2419 | . . . 1118 . 67 502 496 . . 236 Kills 25 | . . . 17 . 1 4 3 . . . Allies Corrupted . | . . . . . . . . . . . Allies Melted . | . . . . . . . . . . . Intel | -11 -10 -9 -9 -9 -8 -8 -7 -7 -7 -7 ------- Run | Scr Mat Mat Sto Gar Mat Gar Fac Low Low Dat Robot Analysis Total 134 | . 1 1 1 . . . . . . 131 Derelict Logs Recovered 2 | . . . . . . . . 1 1 . Drone Launches . | . . . . . . . . . . . Drone Recoveries . | . . . . . . . . . . . Exploration | -11 -10 -9 -9 -9 -8 -8 -7 -7 -7 -7 ------------- Run | Scr Mat Mat Sto Gar Mat Gar Fac Low Low Dat Turns Passed 6678 | 46 164 281 589 1366 116 739 2037 139 1047 154 Spaces Moved 4324 | 39 136 160 294 645 77 388 1515 423 495 152 Core 75 | 9 . 26 1 . . . 9 . 30 . Treads 101 | . . 1 100 . . . . . . . Legs 1139 | 30 132 6 . 405 77 388 101 . . . Wheels 1053 | . . 122 164 . . . 767 . . . Hover 644 | . . . 29 240 . . 375 . . . Flight 1312 | . 4 5 . . . . 263 423 465 152 Fastest Speed 30 | 50 50 50 52 52 120 120 30 30 30 32 Average Speed 122 | 103 117 99 122 190 120 120 100 30 203 76 Slowest Speed 400 | 120 120 160 160 260 120 120 300 30 400 112 Overloaded Moves . | . . . . . . . . . . . Propulsion Burnouts . | . . . . . . . . . . . Robots Hopped . | . . . . . . . . . . . Cave-ins Triggered . | . . . . . . . . . . . Exploration Rate (%) 41 | 5 34 14 65 52 12 38 43 64 56 78 Regions Visited 10 Branch Regions 4 Pre-discovered Areas 28 | . . . . . . . . . 1 27 Known Exits Taken 4 | . . 1 1 . 1 . 1 . . . Unknown Exits Taken 4 | 1 1 . . . . . . 1 1 . Scrap Searched 3 | . . . . . . . . 2 1 . Spaces Dug 19 | . . . . . 1 . 18 . . . Terrain Destroyed 256 | . . . . 109 1 39 33 . 74 . Melee 18 | . . . . . 1 . 17 . . . Projectile 5 | . . . . 3 . . 2 . . . AOE 233 | . . . . 106 . 39 14 . 74 . Terrain Rammed . | . . . . . . . . . . . Walls Destroyed . | . . . . . . . . . . . Machines Disabled . | . . . . . . . . . . . Actions | -11 -10 -9 -9 -9 -8 -8 -7 -7 -7 -7 --------- Run | Scr Mat Mat Sto Gar Mat Gar Fac Low Low Dat Total 5285 | 43 138 219 461 722 95 609 1854 430 521 193 Wait 357 | . . 3 81 4 9 151 85 . 3 21 Move 4315 | 38 135 159 294 643 77 387 1514 422 494 152 Hop . | . . . . . . . . . . . Pick Up 59 | 2 2 8 6 6 . 3 26 2 . 4 Fast Attach 73 | 3 1 9 11 5 1 3 34 1 2 3 Attach 26 | . . 2 2 2 1 2 12 . 4 1 Detach 8 | . . . 2 . . 1 2 . 2 1 Swap 27 | . . 3 2 5 1 5 11 . . . Drop 63 | . . 4 14 4 . 3 26 2 . 10 Fire 264 | . . 31 34 53 5 45 80 . 16 . Melee 88 | . . . 15 . 1 4 64 3 . 1 Ram . | . . . . . . . . . . . Kick . | . . . . . . . . . . . Crush . | . . . . . . . . . . . Escape Stasis 5 | . . . . . . 5 . . . . Rewire . | . . . . . . . . . . . Trap . | . . . . . . . . . . . Miscellaneous . | . . . . . . . . . . . Route ------- -11/Scrapyard -10/Materials -9/Materials -9/Storage -9/Garrison -8/Materials -8/Garrison -7/Factory (discovered 3 exits: [*Fac] / *Low x2) -7/Lower Caves -7/Lower Caves -7/Data Miner (discovered 1 exit: [*Pro]) History --------- Turn | Location | Event 17 | -11/Scrapyard | Discovered new exit (range 16) 47 | -11/Scrapyard | Entered Materials 148 | -10/Materials | Discovered new exit (range 16) 211 | -10/Materials | Entered another Materials area 211 | -9/Materials | Evolved 2 slots: Propulsion x1, Utility x1 268 | -9/Materials | Lost 3 parts (3n) 310 | -9/Materials | Central database locked down 310 | -9/Materials | Discovered new exit (range 9) 481 | -9/Materials | Identified exit to Storage 492 | -9/Materials | Entered Storage 594 | -9/Storage | Build established: Scavenger-Mutant 820 | -9/Storage | Met 01-MTF 935 | -9/Storage | Build established: Mutant 1057 | -9/Storage | Destroyed 01-MTF 1061 | -9/Storage | Found Prototype Device 1061 | -9/Storage | Identified 01-MTF's Autohacker 1064 | -9/Storage | Found 01-MTF's Shockpuncher 1081 | -9/Storage | Identified exit to Garrison 1081 | -9/Storage | Entered Garrison 1114 | -9/Garrison | Triggered checkpoint 1122 | -9/Garrison | Triggered checkpoint 1204 | -9/Garrison | Triggered checkpoint 1206 | -9/Garrison | Garrison Relay disabled 1264 | -9/Garrison | Core integrity fell below 50% 1322 | -9/Garrison | Installed Relay Interface Framework 1508 | -9/Garrison | Triggered checkpoint 1577 | -9/Garrison | Build established: Hacker-Mutant 1604 | -9/Garrison | Triggered checkpoint 1664 | -9/Garrison | Lost 5 parts (1p2n1u1w) 1695 | -9/Garrison | Expanded RIF knowledge: Patrol Navigation 1724 | -9/Garrison | Garrison Relay disabled 1929 | -9/Garrison | Build established: Mutant 2222 | -9/Garrison | Discovered new exit (range 10) 2272 | -9/Garrison | Triggered checkpoint 2311 | -9/Garrison | Learned Materials security intel 2324 | -9/Garrison | Triggered checkpoint 2324 | -9/Garrison | Build established: Hacker-Mutant 2447 | -9/Garrison | Entered Materials 2447 | -8/Materials | Accompanied by 4 allies 2447 | -8/Materials | Evolved 2 slots: Utility x2 2563 | -8/Materials | Identified exit to Garrison 2563 | -8/Materials | Entered Garrison 2563 | -8/Garrison | Accompanied by 6 allies 2592 | -8/Garrison | Triggered checkpoint 2634 | -8/Garrison | Triggered checkpoint 2644 | -8/Garrison | Garrison Relay disabled 2674 | -8/Garrison | Expanded RIF knowledge: Command Fork 2780 | -8/Garrison | Heavy support dispatched to Factory 2873 | -8/Garrison | Heavy support dispatched to Factory 2876 | -8/Garrison | Triggered checkpoint 3027 | -8/Garrison | Triggered checkpoint 3058 | -8/Garrison | Garrison Relay disabled 3072 | -8/Garrison | Expanded RIF knowledge: Autoassimilate 3153 | -8/Garrison | Discovered new exit (range 10) 3166 | -8/Garrison | Triggered checkpoint 3302 | -8/Garrison | Entered Factory 3302 | -7/Factory | Accompanied by 6 allies 3302 | -7/Factory | Evolved 2 slots: Utility x1, Weapon x1 3457 | -7/Factory | Garrison activated, responded to threat 3508 | -7/Factory | Lost 8 parts (1p3n1u3w) 3760 | -7/Factory | Lost 4 parts (1p1n2w) 3889 | -7/Factory | Repaired Med. Storage Unit 3911 | -7/Factory | Repaired Microactuators? 4051 | -7/Factory | Discovered new exit (range 15) 4118 | -7/Factory | Lost 3 parts (1u2w) 4154 | -7/Factory | Core integrity fell below 50% 4197 | -7/Factory | Lost 4 parts (1p2n1u) 4209 | -7/Factory | Identified exit to Lower Caves 4605 | -7/Factory | Build established: Scavenger-Mutant 4729 | -7/Factory | Discovered new exit (range 9) 4981 | -7/Factory | Build established: Hacker-Mutant 5209 | -7/Factory | Lost 5 parts (1p1n2u1w) 5339 | -7/Factory | Entered Lower Caves 5354 | -7/Lower Caves | Learned 4 Factory zone layouts 5359 | -7/Lower Caves | Encountered a Warlord checkpoint 5454 | -7/Lower Caves | Attracted the attention of an 0b10 checkpoint 5462 | -7/Lower Caves | Core integrity fell below 20% 5472 | -7/Lower Caves | Discovered new exit (range 15) 5478 | -7/Lower Caves | Entered another Lower Caves area 5479 | -7/Lower Caves | Learned location of Zion (-6) 5983 | -7/Lower Caves | Encountered a Warlord checkpoint 6132 | -7/Lower Caves | Discovered new exit (range 13) 6357 | -7/Lower Caves | Build established: Mutant 6403 | -7/Lower Caves | Attacked by a delusional Derelict stockpiling Unaware 6525 | -7/Lower Caves | Entered Data Miner 6525 | -7/Data Miner | Accompanied by 4 allies 6525 | -7/Data Miner | Discovered new exit (range 6) 6551 | -7/Data Miner | Met Data Miner 6570 | -7/Data Miner | Learned location of Section 7 (-3) 6570 | -7/Data Miner | Acquired the access code to Warlord's prototype stash 6592 | -7/Data Miner | Received God Mode back door access code from Data Miner 6662 | -7/Data Miner | Destroyed Data Miner 6664 | -7/Data Miner | Found Prototype Hackware 6665 | -7/Data Miner | Interfaced with the Data Conduit 6666 | -7/Data Miner | Found Prototype Hackware 6667 | -7/Data Miner | Found Prototype Hackware 6679 | -7/Data Miner | Destroyed by Enhanced Grunt with Neutron Cannon Last Messages --------------- 06631_ Dropped Spear. 06632_ Acquired Spear. 06633_ Dropped Spear. 06634_ Acquired Mak. Hacking Suite. 06636_ System corrupted: Matter fused (-8). 06662_ Sneak attack on Data Miner. 06662_ Data Miner destroyed. 06664_ Acquired Prototype Hackware. 06665_ Acquired 23 matter. 06665_ Interfacing with system... Downloaded 131 analysis records. Downloaded 719 prototype IDs. Downloaded central machine database. Downloaded 26 destinations. Downloaded encryption format records. Connection remotely terminated. 06666_ Acquired Prototype Hackware. 06674_ Reaction Control System destroyed. 06674_ Microactuators destroyed. 06678_ Acquired Hvy. Rocket Launcher. Map ----- +----------------------------------------------------+ | | | | | | | | | | | | | | | | | | | | | | | | | | | | | | | | | ????????????????????????????????????? | | ????????????????????????????????????? | | ????????????????????????????????????? | | ????????????????????????????????????? | | ????????????????????????####????????? | | ########????#########?### #????????? | | """""""######!# # # ### #????????? | | """"""""#%# # # ;# < ##????????? | | == g g g | /######???? | | g g !@! #???? | | g /!g #???? | | #???? | | ;#???? | | """ "" """""""" ##;###???? | | """###############?##?????? | | """""###??????????????????????? | | "#####????????????????????????? | | ## "#????????????????????????????? | | ### "#????????????????????????????? | | ### "#????????????????????????????? | | ?# "#????????????????????????????? | | ## "#????????????????????????????? | | # "#????????????????????????????? | | ### "#????????????????????????????? | | ??# "##???????????????????????????? | | ?## ""#???????????????????????????? | | ## ""#???????????????????????????? | | #"X ""#???????????????????????????? | | "" "####????????????????????????? | | "" X"""""????????????????????????? | | #"X "##"#????????????????????????? | | ## X""""#????????????????????????? | | ?## "##"#????????????????????????? | | ??#######???????????????????????????? | +----------------------------------------------------+ Best States ------------- Heat Dissipation 38 Energy Generation 16 Energy Capacity 780 Matter Stores 300 Matter Capacity 300 Sight Range 18 Terrain Scan Density 10 Additional Mass Support 6 Armor Coverage 225 Melee Speed Boost 20 Evasion (%) 71 Targeting Accuracy 5 Melee Accuracy 5 Target Analysis 5 Recoil Reduction 1 Salvage Targeting 2 Offensive Hacking 40 Defensive Hacking 20 Relay Coupler Types 1 Relay Coupler Value 27 Item Schematics ----------------- Combat Drone Bay | -7/Data Miner | Free Lgt. Regenerative Plating | -7/Data Miner | Free Cld. Aerolev Unit | -7/Data Miner | Free Gravity Neutralizer | -7/Data Miner | Free Imp. Heavy Machine Gun | -7/Data Miner | Free Hvy. Treads | -7/Data Miner | Free Imp. Component Analysis Suite | -7/Data Miner | Free Variable Charge Gun | -7/Data Miner | Free Fusion Compressor | -7/Data Miner | Free Imp. Launcher Guidance Computer | -7/Data Miner | Free Imp. System Guard | -7/Data Miner | Free HERF Cannon | -7/Data Miner | Free Robot Schematics ------------------ R-10 Processor | -7/Data Miner | Free H-55 Commando | -7/Data Miner | Free G-47 Trooper | -7/Data Miner | Free L-41 Fighter | -7/Data Miner | Free A-15 Conveyor | -7/Data Miner | Free Fabricated ------------ Nothing Alien Tech Used ----------------- None Achievements -------------- None Challenges ------------ None Game ------ Seed CatalystMetafiberField Manual? 1 Play Time 01:21:22 Cumulative 314.9 hours Start 2022.08.13 @ 10:55:12 End 2022.08.13 @ 17:30:30 Sessions 3 Manual Loads 0 Difficulty Rogue Special Mode None Game No. 154 Rogue 150 Adventurer 0 Explorer 4 Win Type - Total 16 Types 4/0/2/4/1/2/3/0/0 Lore% 77 Gallery% 84 Achievement% 75 Wizard Run 0 Options --------- ASCII 0 Keyboard 0 Movement Mouse Keybinds 0 Fullscreen 1 Font 18/SmallcapsGlow Map View 76x50 Tactical HUD 1 Map Filters NONE Filters NONE Steam 1 RUN: f0ebcd13-08bc-44d6-b093-ebc1bc28851d